Cogmind - Beta 14 *** ADVENTURER MODE // 2024.08.14 @ 22:35:55 Player: AnotherZach Result: Destroyed by B-86 Titan with Hardcell Cannon Performance ------------- Evolutions (6) 3000 Regions Visited (13) 2600 Robots Destroyed (308) 1540 Value Destroyed (10106) 10106 Prototype IDs (53) 1060 Alien Tech Used (0) 0 Bonus (1084) 1084 TOTAL SCORE: 19390 Bonus ------- High Alert Combat Kills 578 Follower Combat Kills 236 Aligned with FarCom 300 Met Data Miner 300 Friendly Fire -330 Cogmind --------- Core Integrity 0/1150 Matter 293/300 Energy 21/100 System Corruption 8% Temperature Cool (18) Movement Core (50) Location -4/Factory Parts ------- > --- POWER (2) -------- (None) > --- PROPULSION (7) --- (None) > --- UTILITY (7) ------ Hacking Suite System Shield > --- WEAPON (3) ------- (None) > --- INVENTORY (5) ---- Advanced Energy Well (500) Structural Scanner Advanced Visual Processing Unit Improved Thermal Shield Trap Reconfigurator Peak State ------------ > --- POWER ------------ Neutrino Core Micro Fission Core > --- PROPULSION ------- Advanced Medium Treads Antigrav System Antigrav System Antigrav System Antigrav System Antigrav System Gyrokinetic Inverter > --- UTILITY ---------- Advanced Cooling System Large Storage Unit Hacking Suite Hacking Suite Hacking Suite Improved Hacking Suite System Shield > --- WEAPON ----------- Wave Gun Wave Gun Dispersion Rifle > --- INVENTORY -------- Advanced Medium Treads Advanced Medium Treads Advanced Medium Treads Advanced Medium Treads Advanced Cooling System Advanced Energy Well Matter Compressor Structural Scanner Improved Transmission Jammer Improved Thermal Shield Long-range Tractor Beam Trap Reconfigurator Heavy Missile Launcher Improved Plasma Cutter Dual-blade Saw [Rating: 107] Favorites ----------- Power Light Ion Engine Engine Light Ion Engine Power Core Neutrino Core Reactor Light Antimatter Reactor Propulsion Light Treads Treads Light Treads Leg Carbon-fiber Leg Wheel Wheel Hover Unit Airjet Flight Unit Cooled VTOL Module Utility Advanced Terrain Scan Processor Device Improved Heat Sink Storage Huge Storage Unit Processor Advanced Terrain Scan Processor Hackware Hacking Suite Protection Layered Light Armor Plating Weapon Precision Beam Rifle Energy Gun Precision Beam Rifle Energy Cannon Neutron Cannon Ballistic Gun KE Penetrator Ballistic Cannon Gauss Cannon Launcher Mini Grenade Launcher Special Weapon Mining Laser Impact Weapon Powered Hammer Slashing Weapon Scythe Special Melee Weapon Improved Datajack Build | -11 -10 -10 -10 -9 -8 -7 -6 -6 -6 -6 -5 -5 -4 ------- Run | Yrd Mat Min Exi Min Mat Fac Fac Low Low Dat Pro Fac Fac Slots Evolved 12 | . . . . . 4 2 2 . . . . 2 2 Power 1 | . . . . . . . . . . . . 1 . Propulsion 5 | . . . . . 2 2 . . . . . . 1 Utility 5 | . . . . . 2 . 2 . . . . . 1 Weapon 1 | . . . . . . . . . . . . 1 . Parts Attached 432 | 7 12 2 2 3 64 136 21 7 2 . 35 92 49 Power 37 | 1 2 . . . 6 11 2 . . . 3 9 3 Engine 16 | 1 2 . . . 2 4 2 . . . 1 4 . Core 20 | . . . . . 4 7 . . . . 2 5 2 Reactor 1 | . . . . . . . . . . . . . 1 Propulsion 133 | 2 2 . 2 . 18 52 4 3 1 . 3 29 17 Treads 22 | . 2 . . . 9 . 1 . . . . 2 8 Leg 27 | . . . . . . 8 . . . . 2 15 2 Wheel 29 | 2 . . 2 . 7 10 . 1 1 . . 6 . Hover 34 | . . . . . . 19 1 . . . 1 6 7 Flight 21 | . . . . . 2 15 2 2 . . . . . Utility 152 | 2 4 . . . 17 51 6 3 . . 18 36 15 Device 96 | 1 2 . . . 9 40 3 1 . . 14 18 8 Storage 14 | 1 1 . . . 3 2 1 . . . 2 4 . Processor 15 | . . . . . 3 4 . 2 . . 1 4 1 Hackware 13 | . . . . . . 2 2 . . . . 4 5 Protection 14 | . 1 . . . 2 3 . . . . 1 6 1 Artifact . | . . . . . . . . . . . . . . Weapon 110 | 2 4 2 . 3 23 22 9 1 1 . 11 18 14 Energy Gun 29 | . 3 1 . 1 8 4 . . . . . 5 7 Energy Cannon 6 | . . . . . 1 . . . . . 1 4 . Ballistic Gun 34 | 2 . . . . 9 1 5 . 1 . 8 6 2 Ballistic Cannon 6 | . . . . . 2 1 . . . . . 2 1 Launcher 21 | . 1 . . 2 3 7 4 1 . . 1 1 1 Special Weapon 3 | . . 1 . . . . . . . . 1 . 1 Impact Weapon 6 | . . . . . . 6 . . . . . . . Slashing Weapon 4 | . . . . . . 2 . . . . . . 2 Piercing Weapon . | . . . . . . . . . . . . . . Special Melee Weapon 1 | . . . . . . 1 . . . . . . . Unidentified Prototypes 20 | . . . . . 10 5 2 . . . 3 . . Parts Lost 89 | . 4 . . . 1 20 8 2 . . 19 12 23 Power 12 | . 2 . . . . . . . . . 3 4 3 Propulsion 38 | . 1 . . . 1 14 3 1 . . 5 3 10 Utility 23 | . 1 . . . . 3 4 1 . . 8 1 5 Weapon 16 | . . . . . . 3 1 . . . 3 4 5 Highest Loss Streak 16 | . 3 . . . 1 10 4 2 . . 5 7 16 To Critical Strikes 1 | . . . . . . . . . . . . . 1 Average Slot Usage (%) 91 | . 98 100 99 100 99 95 88 73 74 73 58 88 92 Engine 4 | . 13 14 14 14 5 2 6 6 6 6 . 2 . Core 3 | . . . . . 3 4 . . . . 2 6 9 Treads 9 | . 23 28 1 . 20 5 . . . . . 2 11 Leg 4 | . . . . . . 3 . . . . 6 17 1 Wheel 5 | . 4 . 26 28 14 5 . . 9 13 1 4 . Hover 7 | . . . . . . 16 . 5 . . 1 3 19 Flight 6 | . . . . . . 12 34 20 20 20 3 . . Device 8 | . 2 14 14 14 8 7 15 12 6 6 11 8 6 Storage 7 | . 14 14 14 14 9 7 6 6 6 6 5 5 5 Processor 8 | . . . . . 15 9 5 12 13 13 13 8 1 Hackware 3 | . . . . . . 3 9 6 6 6 . 6 21 Protection 1 | . 10 . . . 2 . . . . . . 2 . Energy Gun 7 | . 20 16 28 23 10 3 . . . . . 5 7 Ballistic Gun 2 | . 7 . . . 3 . 6 . 3 . 5 5 1 Ballistic Cannon 1 | . . . . . 3 . . . . . . 1 2 Launcher 1 | . . 10 . 5 . 1 . . . . . . . Slashing Weapon 1 | . . . . . . 3 . . . . . . 1 Peak Build Rating 107 | 8 14 14 15 15 40 56 62 56 54 50 61 91 107 Average Rating 44 | 5 9 13 14 15 29 44 53 45 52 50 42 76 98 On Entrance 32 | . 8 14 14 15 15 35 34 40 49 54 50 45 84 Naked Turns . | . . . . . . . . . . . . . . Heaviest Build 103 | 12 88 90 90 90 103 103 39 27 27 22 33 68 65 Greatest Support 173 | 26 40 40 40 32 84 90 34 33 27 27 43 116 173 Greatest Overweight (x) 10 | . 2 2 2 2 2 10 1 1 . . 4 3 1 Average Overweight (x) . | . 1 2 2 2 . . . . . . . . . Largest Inventory Capacity 25 | 8 25 25 25 25 25 25 15 10 10 10 10 15 15 Average Capacity 17 | 6 21 25 25 25 23 17 12 10 10 10 7 13 14 Most Carried 25 | 8 25 25 25 25 25 25 15 10 10 10 10 15 15 Average Carried 16 | 4 18 24 23 24 22 17 11 8 9 10 6 12 14 Final Capacity 25 | 8 25 25 25 25 25 15 10 10 10 10 10 15 5 Final Carried 25 | 8 24 25 25 25 25 15 10 10 9 10 8 15 5 Class Distribution -------------------- 29% | Scavenger-Mutant 21% | Mutant 11% | Scavenger-Skirmisher 10% | Hacker-Mutant 9% | Hacker-Scout 7% | Scout Dominant Class ---------------- Mutant | -10/Materials Mutant | -10/Mines Scavenger-Mutant | -10/Exiles Scavenger-Mutant | -9/Mines Scavenger-Mutant | -8/Materials Hacker-Scout | -7/Factory Hacker-Mutant | -6/Factory Scavenger-Sprinter | -6/Lower Caves Hacker-Mutant | -6/Lower Caves Hacker-Mutant | -6/Data Miner Scavenger-Mutant | -5/Proximity Caves Scavenger-Skirmisher | -5/Factory Wizard-Skirmisher | -4/Factory Resources | -11 -10 -10 -10 -9 -8 -7 -6 -6 -6 -6 -5 -5 -4 ----------- Run | Yrd Mat Min Exi Min Mat Fac Fac Low Low Dat Pro Fac Fac Matter Collected 8313 | 298 225 160 20 40 1278 1896 518 84 27 . 833 1965 969 Remotely 285 | 216 69 . . . . . . . . . . . . Salvage Created 12616 | 141 585 222 . 5 1986 2702 842 108 18 . 607 3325 2075 Parts 549 | 9 30 8 . . 96 110 43 7 1 . 23 149 73 Haulers Intercepted 9 | . . . . . 5 4 . . . . . . . Recyclers Shooed 18 | . 1 . . . 2 3 4 . . . . 6 2 Parts Field Recycled . | . . . . . . . . . . . . . . Retrieved Matter . | . . . . . . . . . . . . . . Parts Self-Destructed 23 | . . . . . . . . 9 . . 14 . . Prevented . | . . . . . . . . . . . . . . Kills | -11 -10 -10 -10 -9 -8 -7 -6 -6 -6 -6 -5 -5 -4 ------- Run | Yrd Mat Min Exi Min Mat Fac Fac Low Low Dat Pro Fac Fac Combat Hostiles Destroyed 182 | . 8 6 . 1 35 43 11 2 . . 12 41 23 Melee 12 | . . . . . . 8 . . . . . . 4 Guns 81 | . 8 6 . . 22 8 . . . . 1 27 9 Cannons 30 | . . . . . 8 2 . . . . 7 10 3 AOE 50 | . . . . 1 5 19 11 2 . . 4 1 7 Classes Destroyed 18 | 2 3 1 . . 7 5 . . . . . . . Worker 33 | . 1 . . . 8 13 2 . . . . 6 3 Builder 17 | . . . . . 2 2 2 . . . . 6 5 Tunneler 9 | 2 . . . . . 2 1 . . . . 3 1 Hauler 9 | . . . . . 5 4 . . . . . . . Recycler 33 | 1 2 1 . . 3 11 4 . . . . 7 4 Mechanic 1 | . . . . . 1 . . . . . . . . Operator 4 | . . . . . 2 . . . . . . 1 1 Watcher 22 | . 3 . . . 5 5 2 . . . . 4 3 Swarmer 36 | . . . . . 2 7 8 . . . 5 14 . Cutter 8 | . . . . . . 8 . . . . . . . Grunt 79 | . 8 5 . . 22 14 . 2 . . 4 14 10 Duelist 3 | . . . . . . 1 . . . . 2 . . Sentry 21 | . . . . . 8 4 . . . . 1 5 3 Specialist 2 | . . . . . . 2 . . . . . . . Hunter 12 | . . . . . 3 1 2 . . . . 2 4 Programmer 18 | . . . . . . 5 1 . . . . 6 6 Heavy 1 | . . . . . . 1 . . . . . . . Decomposer 2 | . . . . . . . . 1 1 . . . . Assembled 2 | . . 1 . 1 . . . . . . . . . Best Kill Streak 22 | 2 9 2 . 1 17 11 7 2 . . 5 22 12 Combat Bots Only 10 | . 8 2 . 1 8 9 5 2 . . 5 10 4 Max Kills in Single Turn 6 | 1 1 1 . 1 3 3 4 2 1 . 2 5 6 Gunslinging 1 | . . . . . . . . . . . . 1 . Exploded 4 | . . . . 1 2 3 4 2 . . 2 1 2 Melee 1 | . . . . . . 1 . . . . . . 1 Uniques/NPCs Destroyed . | . . . . . . . . . . . . . . Combat | -11 -10 -10 -10 -9 -8 -7 -6 -6 -6 -6 -5 -5 -4 -------- Run | Yrd Mat Min Exi Min Mat Fac Fac Low Low Dat Pro Fac Fac Hostile Shots Fired 1566 | . 76 23 . . 170 362 23 18 17 . 169 323 385 Missed 508 | . 18 4 . . 51 140 12 10 10 . 53 107 103 Damage Taken 15558 | . 554 202 . . 1418 2870 735 186 108 . 1618 3189 4678 Core 3114 | . 137 43 . . 148 646 63 30 23 . 550 319 1155 Absorbed by Shields . | . . . . . . . . . . . . . . Redirected to Shielding 121 | . . . . . 8 . . . . . 21 . 92 Ignored by Resistances 4420 | . 172 61 . . 407 831 115 36 29 . 546 893 1330 Regen/Repaired (Parts) 84 | . . . . . . 67 . . . . . . 17 Core Remaining (%) 49 | 100 . . . 28 73 7 . . . . 21 68 . Volleys Fired 584 | 7 46 26 . 1 121 95 29 2 1 . 44 142 70 Largest 3 | 2 2 2 . 2 2 2 2 1 1 . 2 3 3 Hottest 225 | 40 80 165 . 95 134 122 80 50 30 . 113 203 225 Shots Fired 1159 | 14 92 37 . 2 229 149 42 2 2 . 66 352 172 Gun 893 | 14 92 26 . 1 179 101 35 1 2 . 45 278 119 Cannon 200 | . . . . . 40 22 . . . . 17 71 50 Launcher 53 | . . 1 . 1 10 26 7 1 . . 1 3 3 Special 13 | . . 10 . . . . . . . . 3 . . Kinetic 569 | 14 74 . . . 94 22 35 1 2 . 45 201 81 Thermal 469 | . . 36 . 1 106 101 . . . . 20 117 88 Explosive 53 | . . 1 . 1 10 26 7 1 . . 1 3 3 Electromagnetic 68 | . 18 . . . 19 . . . . . . 31 . Robot Hit Streak 51 | 11 36 13 . . 40 25 18 1 2 . 10 35 51 Robot Miss Streak 11 | . 3 5 . . 3 11 7 . . . 1 3 1 Penetration Max 1 | . . . . . 1 . 1 . . . . 1 1 Secondary Targets 15 | . 4 . . . 5 . . . . . . 4 2 Max Gunslinging Chain 1 | . 1 . . . 1 . . . . . . 1 1 Shots Hit Robots 963 | 11 78 20 . . 185 188 36 1 1 . 41 251 151 Core Hits 623 | 5 29 34 . 4 149 96 61 15 1 . 29 105 95 Critical Kills 7 | . . . . . 1 . . . . . . 6 . Critical Parts Destroyed 11 | . . . . . . 5 . . . . . 6 . Critical Strikes 65 | . . . . . 7 28 . . . . . 21 9 Burn 23 | . . . . . 4 12 . . . . . 5 2 Destroy 13 | . . . . . 1 . . . . . . 12 . Blast 13 | . . . . . 2 4 . . . . . 4 3 Smash 5 | . . . . . . 5 . . . . . . . Sever 11 | . . . . . . 7 . . . . . . 4 Melee Attacks 190 | . . . . . . 170 . . . . . . 20 Impact 99 | . . . . . . 99 . . . . . . . Slashing 90 | . . . . . . 70 . . . . . . 20 Piercing . | . . . . . . . . . . . . . . Sneak Attacks 18 | . . . . . . 17 . . . . . . 1 Combat Hostiles 1 | . . . . . . 1 . . . . . . . Follow-up Attacks 5 | . . . . . . 5 . . . . . . . Damage Inflicted 32509 | 127 907 399 . 92 5069 7667 2053 534 24 . 1622 6991 7024 Guns 13886 | 127 907 324 . . 2820 1580 699 19 24 . 494 4206 2686 Cannons 5152 | . . . . . 1001 476 . . . . 532 1980 1163 Explosions 8859 | . . 75 . 92 1219 1950 1313 515 . . 534 805 2356 Melee 4443 | . . . . . . 3661 . . . . . . 782 Ramming 122 | . . . . . 29 . 41 . . . 15 . 37 Kinetic 9371 | 127 700 . . . 1706 476 699 19 24 . 494 3227 1899 Thermal 10090 | . . 324 . . 1916 1580 237 . . . 784 2530 2719 Explosive 6845 | . . 75 . 92 982 1939 1028 515 . . 329 298 1587 Electromagnetic 1638 | . 207 . . . 436 11 48 . . . . 936 . Impact 2343 | . . . . . . 2343 . . . . . . . Slashing 2100 | . . . . . . 1318 . . . . . . 782 Piercing . | . . . . . . . . . . . . . . Highest Corruption 8 | . . . . . 2 1 8 8 8 8 8 2 8 Average Corruption 2 | . . . . . 2 1 8 8 8 8 8 1 3 Corruption Purged 1 | . . . . . . 1 . . . . . . . Corruption Blocked 9 | . . . . . . . . . . . . 9 . Effects 155 | . . . . . 17 28 . 12 9 2 51 18 18 Message Errors 37 | . . . . . 1 9 . 1 2 . 16 7 1 Matter Fused 37 | . . . . . 2 6 . 5 1 2 14 1 6 Heat Flow Errors 16 | . . . . . 2 5 . 1 1 . 3 2 2 Energy Discharges 18 | . . . . . 1 3 . 2 2 . 3 4 3 Parts Rejected 2 | . . . . . . . . . . . 1 . 1 Parts Fused 3 | . . . . . 1 1 . . . . 1 . . Data Loss (minor) 19 | . . . . . 5 1 . 1 1 . 8 1 2 Data Loss (major) 9 | . . . . . 2 2 . 1 . . 2 1 1 Misfires 6 | . . . . . 2 . . . 1 . 2 1 . Alerts 5 | . . . . . . 1 . 1 1 . 1 1 . Weapon Failures 3 | . . . . . 1 . . . . . . . 2 Overload Shots . | . . . . . . . . . . . . . . Overflow Damage 1865 | . . . . . 86 1233 104 . . . 6 199 237 Projectiles 155 | . . . . . 37 22 . . . . . 34 62 Explosions 523 | . . . . . 49 30 104 . . . 6 165 169 Melee 1187 | . . . . . . 1181 . . . . . . 6 Knockbacks 31 | . . . . . 3 13 . . . . . 4 11 Impact 10 | . . . . . . 9 . . . . . . 1 Kinetic 20 | . . . . . 3 4 . . . . . 4 9 Secondary 1 | . . . . . . . . . . . . . 1 Self-Inflicted Damage 858 | . . . . . 54 103 326 . . . 82 86 207 Shots 26 | . . . . . 3 5 6 . . . 5 3 4 Rammed 14 | . . . . . 1 . 6 . . . 4 . 3 Targets Rammed 16 | . . . . . 1 . 6 . . . 4 1 4 Kicked 2 | . . . . . . . . . . . . 1 1 Crushed . | . . . . . . . . . . . . . . Highest Temperature 511 | . 36 132 . . 511 249 20 240 262 . 151 315 316 Average Temperature 57 | . 12 41 . . 66 40 11 134 112 . 33 59 88 Received Heat Transfer 4318 | . 441 147 . . 855 738 12 48 . . 450 759 868 Effects 3 | . . . . . 2 . . . . . . 1 . Shutdowns 1 | . . . . . 1 . . . . . . . . Energy Bleed 1 | . . . . . . . . . . . . 1 . Damage (minor) 1 | . . . . . 1 . . . . . . . . Siege Activations . | . . . . . . . . . . . . . . Robots Corrupted 9 | . . . . . . 8 . . . . . 1 . Combat Hostiles 5 | . . . . . . 4 . . . . . 1 . Parts Fried 46 | . 5 . . . 1 28 . . . . . 12 . Impact Corruptions 30 | . . . . . . 30 . . . . . . . Robots Melted 4 | . . . . . . 2 . . . . . 2 . Combat Hostiles 4 | . . . . . . 2 . . . . . 2 . Parts Melted 34 | . . . . . 3 14 1 . . . . 10 6 Heat Transferred 15531 | . . 390 . . 3270 4144 250 . . . 361 3569 3547 Parts Sabotaged . | . . . . . . . . . . . . . . Parts Stolen . | . . . . . . . . . . . . . . Parts Stripped . | . . . . . . . . . . . . . . Power Chain Reactions 7 | . . . . . 4 . . . . . 2 1 . Alert | -11 -10 -10 -10 -9 -8 -7 -6 -6 -6 -6 -5 -5 -4 ------- Run | Yrd Mat Min Exi Min Mat Fac Fac Low Low Dat Pro Fac Fac Peak Influence 1106 | 15 205 208 . 9 411 533 1106 . . . . 609 754 Initial 224 | . 8 1 . . 2 72 224 . . . . 22 216 Average 182 | 5 36 24 . 5 205 104 713 . . . . 298 471 Maximum Alert Level 4 | . 1 1 . . 2 2 4 . . . . 2 3 Low Security (%) 64 | 100 98 94 . 100 44 85 . . . . . 30 1 Level 1 21 | . 1 5 . . 53 10 25 . . . . 31 39 Level 2 10 | . . . . . 1 3 2 . . . . 38 47 Level 3 3 | . . . . . . . 64 . . . . . 11 Level 4 . | . . . . . . . 7 . . . . . . Level 5 . | . . . . . . . . . . . . . . High Security . | . . . . . . . . . . . . . . Max Security . | . . . . . . . . . . . . . . Squads Dispatched 58 | . 1 . . . 5 29 3 . . . . 9 11 Investigation 17 | . 1 . . . 1 10 1 . . . . 1 3 Extermination 10 | . . . . . . 5 1 . . . . 3 1 Reinforcement 24 | . . . . . 4 13 . . . . . 2 5 Assault 2 | . . . . . . 1 . . . . . . 1 Garrison 5 | . . . . . . . 1 . . . . 3 1 Intercept . | . . . . . . . . . . . . . . Searches Triggered 1 | . . . . . . . 1 . . . . . . Construction Impeded 4 | . . . . . 2 . . . . . . . 2 Haulers Reinforced 3 | . . . . . . 1 . . . . . . 2 Active Scanning Responses . | . . . . . . . . . . . . . . Cargo Convoy Interrupts 1 | . . . . . . 1 . . . . . . . Stealth | -11 -10 -10 -10 -9 -8 -7 -6 -6 -6 -6 -5 -5 -4 --------- Run | Yrd Mat Min Exi Min Mat Fac Fac Low Low Dat Pro Fac Fac Distress Signals 12 | . . . . . 3 1 . . . . . 5 3 Communications Jammed 44 | . . . . . . . . . . . . . 44 Distress Signals 38 | . . . . . . . . . . . . . 38 Times Spotted 319 | . 15 8 . 9 50 88 17 6 1 . 25 55 45 Peak Tracking Total 19 | . 8 2 . 19 7 7 5 4 1 . 5 8 19 Tactical Retreats 24 | . . . . . 2 12 . 1 1 . 4 2 2 Traps | -11 -10 -10 -10 -9 -8 -7 -6 -6 -6 -6 -5 -5 -4 ------- Run | Yrd Mat Min Exi Min Mat Fac Fac Low Low Dat Pro Fac Fac Traps Triggered 5 | . 1 . . . . 1 . 1 . . . 1 1 Indirectly . | . . . . . . . . . . . . . . Trap Hack Attempts . | . . . . . . . . . . . . . . Triggered . | . . . . . . . . . . . . . . Disarmed . | . . . . . . . . . . . . . . Reprogrammed . | . . . . . . . . . . . . . . Reused 26 | . . . . . . 24 . . . . . . 2 Traps Reconfigurated 92 | . . . . . 7 70 . . . . . 10 5 Traps Extracted . | . . . . . . . . . . . . . . Installed . | . . . . . . . . . . . . . . Triggered 32 | . . . . . . 30 . . . . . . 2 Objects Rigged 6 | . . . . . . . . . . . . . 6 Exploded 2 | . . . . . . . . . . . . . 2 Machines | -11 -10 -10 -10 -9 -8 -7 -6 -6 -6 -6 -5 -5 -4 ---------- Run | Yrd Mat Min Exi Min Mat Fac Fac Low Low Dat Pro Fac Fac Machines Disabled 44 | . . . . . 3 8 14 . . . . 7 12 Max in Single Turn 7 | . . . . . 2 3 5 . . . . 1 7 Garrison Access 5 | . . . . . . 3 . . . . . 1 1 Machines Repaired . | . . . . . . . . . . . . . . Machines Dismantled 1 | . . . . . . . . . . . . . 1 Machines Sabotaged . | . . . . . . . . . . . . . . Overloaded Fab Kills . | . . . . . . . . . . . . . . Hacking | -11 -10 -10 -10 -9 -8 -7 -6 -6 -6 -6 -5 -5 -4 --------- Run | Yrd Mat Min Exi Min Mat Fac Fac Low Low Dat Pro Fac Fac Machines Accessed 79 | . 7 . 1 . 9 31 2 1 . 4 . 11 13 Terminals 40 | . 6 . . . 7 14 1 . . . . 3 9 Fabricators 10 | . . . . . . 5 . . . . . 4 1 Repair Stations 6 | . . . . . . 4 1 . . . . . 1 Recycling Units 8 | . 1 . . . . 3 . . . . . 3 1 Scanalyzers 4 | . . . . . 2 2 . . . . . . . Garrison Access 5 | . . . . . . 3 . . . . . 1 1 Total Hacks 291 | . 19 . 1 . 26 105 4 1 . 32 . 39 64 Successful 200 | . 11 . 1 . 17 59 2 1 . 32 . 25 52 Failed 90 | . 8 . . . 8 46 2 . . . . 14 12 Catastrophic 14 | . 1 . . . 3 9 . . . . . 1 . Database Lockouts 1 | . . . . . 1 . . . . . . . . Manual 154 | . 13 . 1 . 17 58 . . . . . 23 42 Terminals 156 | . 17 . . . 16 57 1 . . . . 13 52 Fabricators 32 | . . . . . . 14 . . . . . 14 4 Repair Stations 14 | . . . . . . 9 3 . . . . . 2 Recycling Units 24 | . 2 . . . . 8 . . . . . 11 3 Scanalyzers 18 | . . . . . 10 8 . . . . . . . Garrison Access 13 | . . . . . . 9 . . . . . 1 3 Terminal Hacks 96 | . 5 . 1 . 4 20 1 1 . 32 . 3 29 Record 16 | . . . . . . 4 . . . 11 . . 1 Part Schematic 24 | . 1 . . . . 5 . . . 13 . . 5 Robot Schematic 9 | . 1 . . . 1 1 . . . 5 . . 1 Robot Analysis 6 | . 1 . . . 1 1 . . . . . 1 2 Prototype ID Bank 3 | . . . . . . . . . . 3 . . . Open Door 2 | . . . . . . . 1 1 . . . . . Level Access Points 1 | . . . . . . . . . . . . . 1 Branch Access Points 2 | . . . . . . 1 . . . . . . 1 Terminal Index 2 | . . . . . . 1 . . . . . . 1 Fabricator Index 1 | . . . . . . . . . . . . . 1 Scanalyzer Index 2 | . . . . . . 1 . . . . . . 1 Alert Level 2 | . 1 . . . . . . . . . . 1 . Unreport Threat 7 | . 1 . . . 1 1 . . . . . . 4 Locate Traps 5 | . . . . . . 4 . . . . . 1 . Dispatch Records 2 | . . . . . . . . . . . . . 2 Recall Investigation 1 | . . . . . . . . . . . . . 1 Recall Assault 1 | . . . . . . . . . . . . . 1 Hauler Manifests 1 | . . . . . . 1 . . . . . . . Registered Components 2 | . . . . . . . . . . . . . 2 Registered Prototypes 1 | . . . . . . . . . . . . . 1 Zone Layout 5 | . . . . . 1 . . . . . . . 4 Derelict Proto ID Bank 1 | . . . 1 . . . . . . . . . . Fabricator Hacks 5 | . . . . . . 1 . . . . . 4 . Network Status 1 | . . . . . . . . . . . . 1 . Load Schematic 2 | . . . . . . 1 . . . . . 1 . Build 2 | . . . . . . . . . . . . 2 . Repair Station Hacks 5 | . . . . . . 2 1 . . . . . 2 Scan Component 2 | . . . . . . . 1 . . . . . 1 Repair 1 | . . . . . . . . . . . . . 1 Refit 2 | . . . . . . 2 . . . . . . . Recycling Unit Hacks 3 | . 1 . . . . . . . . . . 2 . Retrieve Components 3 | . 1 . . . . . . . . . . 2 . Scanalyzer 16 | . . . . . 9 7 . . . . . . . Insert Component 7 | . . . . . 4 3 . . . . . . . Analyze 9 | . . . . . 5 4 . . . . . . . Garrison Access Hacks 3 | . . . . . . 2 . . . . . 1 . Seal Access 3 | . . . . . . 2 . . . . . 1 . Unauthorized Hacks 72 | . 5 . . . 4 27 . . . . . 15 21 Terminals 33 | . 4 . . . 3 11 . . . . . 2 13 Track 10 | . 2 . . . 1 3 . . . . . 1 3 Assimilate 6 | . . . . . . 3 . . . . . . 3 Botnet 9 | . 2 . . . 1 3 . . . . . 1 2 Detonate 1 | . . . . . . . . . . . . . 1 Disrupt 1 | . . . . . . . . . . . . . 1 Operators 2 | . . . . . 1 1 . . . . . . . Skim 3 | . . . . . . 1 . . . . . . 2 Sabotage 1 | . . . . . . . . . . . . . 1 Fabricators 20 | . . . . . . 8 . . . . . 8 4 Report 2 | . . . . . . . . . . . . 1 1 Prioritize 2 | . . . . . . . . . . . . 1 1 Liberate 10 | . . . . . . 5 . . . . . 4 1 Fabnet 3 | . . . . . . 1 . . . . . 1 1 Haulers 2 | . . . . . . 1 . . . . . 1 . Recompile 1 | . . . . . . 1 . . . . . . . Repair Stations 4 | . . . . . . 4 . . . . . . . Patch 4 | . . . . . . 4 . . . . . . . Recycling Units 11 | . 1 . . . . 3 . . . . . 5 2 Reject 8 | . 1 . . . . 3 . . . . . 3 1 Recyclers 3 | . . . . . . . . . . . . 2 1 Scanalyzers 2 | . . . . . 1 1 . . . . . . . Extract 2 | . . . . . 1 1 . . . . . . . Garrison Access 2 | . . . . . . . . . . . . . 2 Broadcast 1 | . . . . . . . . . . . . . 1 Reprogram 1 | . . . . . . . . . . . . . 1 Data Cores Recovered 1 | . . . . . . . . . . . . . 1 Used . | . . . . . . . . . . . . . . Hacking Detections 61 | . 7 . . . 8 26 1 . . . . 7 12 Full Trace Events 9 | . 1 . . . 1 4 1 . . . . 1 1 Feedback Events . | . . . . . . . . . . . . . . Feedback Blocked . | . . . . . . . . . . . . . . Robot Schematics Acquired 9 | . 1 . . . 1 1 . . . 5 . . 1 Robots Built . | . . . . . . . . . . . . . . Authchips . | . . . . . . . . . . . . . . Time . | . . . . . . . . . . . . . . Total Robot Build Rating . | . . . . . . . . . . . . . . Part Schematics Acquired 33 | . 1 . . . 5 9 . . . 13 . . 5 Parts Built 4 | . . . . . . . . . . . . 4 . Authchips 1 | . . . . . . . . . . . . 1 . Time 148 | . . . . . . . . . . . . 148 . Total Part Build Rating 24 | . . . . . . . . . . . . 24 . Parts Repaired 1 | . . . . . . . . . . . . . 1 Time 56 | . . . . . . . . . . . . . 56 Parts Recycled . | . . . . . . . . . . . . . . Recycled Matter . | . . . . . . . . . . . . . . Retrieved Matter . | . . . . . . . . . . . . . . Retrieved Components 18 | . 2 . . . . . . . . . . 16 . Parts Scanalyzed 7 | . . . . . 4 3 . . . . . . . Part Schematics Acquired 7 | . . . . . 4 3 . . . . . . . Parts Damaged . | . . . . . . . . . . . . . . Bothacking | -11 -10 -10 -10 -9 -8 -7 -6 -6 -6 -6 -5 -5 -4 ------------ Run | Yrd Mat Min Exi Min Mat Fac Fac Low Low Dat Pro Fac Fac Used RIF Installer . | . . . . . . . . . . . . . . Robots Hacked 2 | . . . . . . 1 . . . . . . 1 Non-combat 1 | . . . . . . 1 . . . . . . . Combat 1 | . . . . . . . . . . . . . 1 Robot Hacks Applied 1 | . . . . . . 1 . . . . . . . find_chute 1 | . . . . . . 1 . . . . . . . Relay Couplers Released 6 | . . . . . . 1 . . . . . 3 2 Machine Destruction 6 | . . . . . . 1 . . . . . 3 2 Fabnet Peak Effective % 3 | . . . . . . . 3 3 3 3 1 1 3 Autooverrided 1 | . . . . . . . . . . . . . 1 Robots Rewired . | . . . . . . . . . . . . . . Allies Hacked . | . . . . . . . . . . . . . . Hacks Repelled . | . . . . . . . . . . . . . . Allies | -11 -10 -10 -10 -9 -8 -7 -6 -6 -6 -6 -5 -5 -4 -------- Run | Yrd Mat Min Exi Min Mat Fac Fac Low Low Dat Pro Fac Fac Total Allies 22 | . . 5 . . . 10 . . . . 1 . 6 Largest Group 5 | . . 5 3 1 1 4 . . . . 1 . 4 Highest-Rated Group 167 | . . 83 59 16 16 74 . . . . 96 . 167 Highest-Rated Ally 96 | . . 31 31 16 16 26 . . . . 96 . 49 Total Orders 3 | . . . . . . 2 . . . . . . 1 STAY 2 | . . . . . . 1 . . . . . . 1 FOLLOW 1 | . . . . . . 1 . . . . . . . Ally Attacks 123 | . . 16 . 4 2 72 . . . . 14 . 15 Total Damage 1737 | . . 243 . 30 30 733 . . . . 385 . 316 Kills 25 | . . 5 . 1 1 11 . . . . 6 . 1 Allies Corrupted . | . . . . . . . . . . . . . . Allies Melted . | . . . . . . . . . . . . . . Intel | -11 -10 -10 -10 -9 -8 -7 -6 -6 -6 -6 -5 -5 -4 ------- Run | Yrd Mat Min Exi Min Mat Fac Fac Low Low Dat Pro Fac Fac Robot Analysis Total 6 | . 1 . . . 1 1 . . . . . 1 2 Derelict Logs Recovered 4 | . . 1 . . . . . . 1 . 2 . . Drone Launches . | . . . . . . . . . . . . . . Drone Recoveries . | . . . . . . . . . . . . . . Exploration | -11 -10 -10 -10 -9 -8 -7 -6 -6 -6 -6 -5 -5 -4 ------------- Run | Yrd Mat Min Exi Min Mat Fac Fac Low Low Dat Pro Fac Fac Turns Passed 17861 | 98 1306 1191 356 139 2444 6336 611 299 234 46 1522 2361 918 Spaces Moved 12808 | 65 474 333 262 85 1048 5820 600 343 441 90 1191 1394 662 Core 50 | 8 . . . . . . . . . . 39 . 3 Treads 1500 | . 313 333 4 . 554 197 . . . . . . 99 Legs 1049 | . . . . . . 15 . . . . 532 502 . Wheels 2352 | 57 161 . 258 85 494 643 . . . . 35 619 . Hover 3994 | . . . . . . 2861 . . . . 300 273 560 Flight 3863 | . . . . . . 2104 600 343 441 90 285 . . Fastest Speed 20 | 50 90 320 130 130 110 20 20 30 45 50 31 41 37 Average Speed 86 | 85 238 320 132 130 149 54 46 32 47 50 86 105 66 Slowest Speed 330 | 90 320 320 320 130 236 260 100 100 50 50 250 330 147 Overloaded Moves 110 | . . . . . . 10 . . . . 100 . . Propulsion Burnouts . | . . . . . . . . . . . . . . Robots Hopped 3 | . . . . . . . 1 . 2 . . . . Cave-ins Triggered 1 | . . . . . . . 1 . . . . . . Exploration Rate (%) 49 | 3 57 87 63 22 77 73 15 42 60 71 76 28 15 Regions Visited 13 Branch Regions 7 Pre-discovered Areas 2 | . . 1 . . . . . . . 1 . . . Known Exits Taken 5 | . . . . . . . . 1 1 1 1 1 . Unknown Exits Taken 8 | 1 1 1 1 1 1 1 1 . . . . . . Scrap Searched 6 | . . 2 . 1 . . . 1 . . 2 . . Spaces Dug 121 | . . . . . . 117 . . . . . . 4 Terrain Destroyed 953 | . . 13 . 9 86 325 250 13 . . 48 86 123 Melee 52 | . . . . . . 51 . . . . . . 1 Projectile 69 | . . 3 . . 15 3 . . . . 5 19 24 AOE 832 | . . 10 . 9 71 271 250 13 . . 43 67 98 Terrain Rammed . | . . . . . . . . . . . . . . Walls Destroyed . | . . . . . . . . . . . . . . Machines Disabled . | . . . . . . . . . . . . . . Actions | -11 -10 -10 -10 -9 -8 -7 -6 -6 -6 -6 -5 -5 -4 --------- Run | Yrd Mat Min Exi Min Mat Fac Fac Low Low Dat Pro Fac Fac Total 18349 | 94 568 402 271 110 1738 8586 890 526 461 90 1623 2017 973 Wait 3539 | 1 1 41 2 20 353 2137 195 166 19 . 303 222 79 Move 12789 | 64 473 332 261 84 1047 5819 596 342 437 89 1190 1393 662 Hop 2 | . . . . . . . 1 . 1 . . . . Pick Up 457 | 15 28 1 3 1 79 128 20 5 1 . 32 98 46 Fast Attach . | . . . . . . . . . . . . . . Attach 229 | 7 8 . 2 . 17 63 14 5 2 . 29 52 30 Detach 22 | . . . . . . 8 3 2 . 1 4 2 2 Swap 203 | . 4 2 . 3 47 73 7 2 . . 6 40 19 Drop 320 | . 8 . 3 1 73 101 18 2 . . 11 67 36 Fire 584 | 7 46 26 . 1 121 95 29 2 1 . 44 142 70 Melee 182 | . . . . . . 162 . . . . . . 20 Ram 10 | . . . . . . . 6 . . . 4 . . Kick 2 | . . . . . . . . . . . . 1 1 Crush 4 | . . . . . 1 . . . . . . . 3 Escape Stasis 1 | . . . . . . . 1 . . . . . . Rewire . | . . . . . . . . . . . . . . Trap . | . . . . . . . . . . . . . . Miscellaneous 5 | . . . . . . . . . . . . . 5 Route ------- -11/Scrapyard -10/Materials (discovered 2 exits: [*Mat] / [*Min]) -10/Mines (discovered 3 exits: [*Mat x2] / *Exi) -10/Exiles -9/Mines -8/Materials (discovered 2 exits: *Fac x2) -7/Factory (discovered 4 exits: *Fac x2 / Low x2) -6/Factory (discovered 3 exits: *Fac / *Low / [*Ext]) -6/Lower Caves -6/Lower Caves (discovered 2 exits: *Fac / *Dat) -6/Data Miner -5/Proximity Caves -5/Factory -4/Factory (discovered 7 exits: Res x4 / Upp x2 / *Arm) History --------- Turn | Location | Event 2 | -11/Scrapyard | Discovered new exit (range 16) 99 | -11/Scrapyard | Entered Materials 313 | -10/Materials | Core integrity fell below 50% 323 | -10/Materials | Build established: Mutant 329 | -10/Materials | Lost 3 parts (1p1n1u) 365 | -10/Materials | Destroyed 8 combat bots 645 | -10/Materials | Discovered new exit (range 15) 1361 | -10/Materials | Discovered new exit (range 6) 1405 | -10/Materials | Entered Mines 1412 | -10/Mines | Assisted by bots powering up and referring to "LRC-V3" 1883 | -10/Mines | Discovered new exit (range 16) 2243 | -10/Mines | Found a damaged Exp. Sensor Array with a note attached 2325 | -10/Mines | Excavation squad dispatched 2325 | -10/Mines | A large section of the Mines collapsed 2421 | -10/Mines | Discovered new exit (range 10) 2532 | -10/Mines | Deemed a non-threat by the Exiles lab entrance 2536 | -10/Mines | Discovered new exit (range 5) 2596 | -10/Mines | Entered Exiles 2596 | -10/Exiles | Accompanied by 3 allies 2626 | -10/Exiles | Led the pair of lost Derelicts to a safe place 2638 | -10/Exiles | Met 8R-AWN 2662 | -10/Exiles | Met EX-HEX 2707 | -10/Exiles | Met EX-BIN 2725 | -10/Exiles | Aligned with FarCom system 2727 | -10/Exiles | Given EX-Vault access code 2757 | -10/Exiles | Opened EX-Vault 2764 | -10/Exiles | Found Trap Reconfigurator 2791 | -10/Exiles | Warned to stay clear of 0b10 Research branches 2811 | -10/Exiles | Exiles lab attacked by MAIN.C 2898 | -10/Exiles | Build established: Scavenger-Mutant 2933 | -10/Exiles | Discovered new exit (range 12) 2952 | -10/Exiles | Left Exiles lab with Trap Reconfigurator 2952 | -10/Exiles | Entered Mines 2952 | -9/Mines | Accompanied by 1 ally 3000 | -9/Mines | Assembled infested the area 3005 | -9/Mines | Assisted by a Guerilla fighting off Assembled 3076 | -9/Mines | Discovered new exit (range 6) 3091 | -9/Mines | Entered Materials 3091 | -8/Materials | Accompanied by 1 ally 3091 | -8/Materials | Evolved 4 slots: Propulsion x2, Utility x2 4301 | -8/Materials | Destroyed 8 combat bots 4514 | -8/Materials | Discovered new exit (range 16) 5229 | -8/Materials | Central database locked down 5421 | -8/Materials | Build established: Mutant 5460 | -8/Materials | Discovered new exit (range 9) 5535 | -8/Materials | Entered Factory 5535 | -7/Factory | Evolved 2 slots: Propulsion x2 5818 | -7/Factory | Build established: Scavenger-Mutant 6875 | -7/Factory | Cargo convoy interrupted 7099 | -7/Factory | Build established: Scavenger-Skirmisher 7331 | -7/Factory | Discovered new exit (range 13) 7409 | -7/Factory | Identified exit to Lower Caves 7435 | -7/Factory | Found Prototype Launcher 7436 | -7/Factory | Identified Scatter Rocket Array 7449 | -7/Factory | Found PL-3XN's Ring of Power 7594 | -7/Factory | Build established: Scavenger-Mutant 8130 | -7/Factory | Build established: Scout 9644 | -7/Factory | Build established: Hacker-Mutant 10324 | -7/Factory | Build established: Hacker-Scout 11377 | -7/Factory | Discovered new exit (range 15) 11616 | -7/Factory | Destroyed 9 combat bots 11642 | -7/Factory | Lost 4 parts (2n1u1w) 11710 | -7/Factory | Core integrity fell below 50% 11720 | -7/Factory | Core integrity fell below 20% 11753 | -7/Factory | Lost 10 parts (7n1u2w) 11871 | -7/Factory | Entered another Factory area 11871 | -6/Factory | Evolved 2 slots: Utility x2 12034 | -6/Factory | Discovered new exit (range 20) 12221 | -6/Factory | Search patrols dispatched 12267 | -6/Factory | Discovered new exit (range 10) 12380 | -6/Factory | Discovered new exit (range 11) 12403 | -6/Factory | Garrison activated, responded to threat 12439 | -6/Factory | Lost 4 parts (2n1u1w) 12470 | -6/Factory | Crushed by falling debris 12482 | -6/Factory | Entered Lower Caves 12501 | -6/Lower Caves | Lost 3 parts (1n2u) 12744 | -6/Lower Caves | Discovered new exit (range 15) 12781 | -6/Lower Caves | Identified exit to Lower Caves 12781 | -6/Lower Caves | Entered another Lower Caves area 12829 | -6/Lower Caves | Discovered new exit (range 9) 12833 | -6/Lower Caves | Identified exit to Factory 12846 | -6/Lower Caves | Spotted B-75 Beast 12934 | -6/Lower Caves | Learned Factory security intel 13013 | -6/Lower Caves | Discovered new exit (range 5) 13015 | -6/Lower Caves | Identified exit to Data Miner 13015 | -6/Lower Caves | Entered Data Miner 13016 | -6/Data Miner | Discovered new exit (range 6) 13027 | -6/Data Miner | Met Data Miner 13038 | -6/Data Miner | Learned location of Section 7 (-2) 13038 | -6/Data Miner | Acquired the access code to Warlord's prototype stash 13046 | -6/Data Miner | Received God Mode back door access code from Data Miner 13055 | -6/Data Miner | Build established: Hacker-Mutant 13060 | -6/Data Miner | Identified exit to Proximity Caves 13061 | -6/Data Miner | Entered Proximity Caves 13105 | -5/Proximity Caves | Learned location of 1 exit from Upper Caves 13296 | -5/Proximity Caves | Lost 3 parts (1p1n1u) 13357 | -5/Proximity Caves | Lost 5 parts (1p2n1u1w) 13579 | -5/Proximity Caves | Build established: Mutant 13623 | -5/Proximity Caves | Core integrity fell below 50% 13647 | -5/Proximity Caves | Escorted by Enhanced Grunt 13676 | -5/Proximity Caves | Lost 5 parts (1n2u2w) 13689 | -5/Proximity Caves | Found Prototype Device 13690 | -5/Proximity Caves | Identified Exp. Thermal Shield 13974 | -5/Proximity Caves | Build established: Scavenger-Mutant 14288 | -5/Proximity Caves | Lost 3 parts (1p2u) 14468 | -5/Proximity Caves | Attracted the attention of an 0b10 checkpoint 14570 | -5/Proximity Caves | Discovered exit to Factory (range 3) 14583 | -5/Proximity Caves | Entered Factory 14583 | -5/Factory | Evolved 2 slots: Power x1, Weapon x1 15035 | -5/Factory | Destroyed 7 combat bots 15051 | -5/Factory | Lost 7 parts (1p2n1u3w) 15052 | -5/Factory | Garrison activated, responded to threat 15247 | -5/Factory | Fabricated Arm. Huge Wheel? 15800 | -5/Factory | Destroyed 10 combat bots 16157 | -5/Factory | Build established: Scavenger-Skirmisher 16224 | -5/Factory | Fabricated Biometal Leg (x2) 16925 | -5/Factory | Discovered new exit (range 14) 16943 | -5/Factory | Identified exit to Factory 16944 | -5/Factory | Entered another Factory area 16944 | -4/Factory | Evolved 2 slots: Propulsion x1, Utility x1 16945 | -4/Factory | Identified exit to Armory 16992 | -4/Factory | Garrison activated, responded to threat 17136 | -4/Factory | Identified exit to Upper Caves 17136 | -4/Factory | Identified exit to Research 17434 | -4/Factory | Repaired Antigrav System 17794 | -4/Factory | Lost 4 parts (1p2n1u) 17854 | -4/Factory | Core integrity fell below 50% 17858 | -4/Factory | Spotted B-86 Titan 17861 | -4/Factory | Core integrity fell below 20% 17862 | -4/Factory | Destroyed by B-86 Titan with Hardcell Cannon Last Messages --------------- 17859_ Penetrated by Slug. 17859_ A-15 Conveyor bypasses jamming via Transport Network Coupler. 17859_ A-15 Conveyor calls for reinforcements. 17859_ ALERT: Hostile activity reported, dispatching reinforcements to area. 17859_ A-15 Conveyor distress signal jammed. 17859_ Nuclear Reactor explodes. 17859_ K-01 Serf destroyed. 17859_ Penetrated by Slug. 17859_ Slug penetrates Earth. 17860_ U-05 Engineer lays Concrete. 17860_ Imp. Transmission Jammer destroyed. 17860_ Dropped Lrg. Storage Unit. 17861_ U-05 Engineer lays Concrete. 17861_ Acquired 12 matter. 17862_ The unstable cave ceiling collapses. 17862_ U-05 Engineer lays Concrete. 17862_ Penetrated by Slug. 17862_ U-05 Engineer lays Concrete. Map ----- +----------------------------------------------------+ | ?????????????????????????????????????????????????? | | ?????????????????????????????????????????????????? | | ?????????????????????????????????????????????????? | | ?????????????????????????????????????????????????? | | ?????????????????????????????????????????????????? | | ?????????????????????????????????????????????????? | | ?????????????????????????????????????????????????? | | ????????????????????????????????????? ???????????? | | ????????????????????????????????????? ???????????? | | ????????????????????????????????????# ???????????? | | ???????????????????????????????????? ???????????? | | ????????????????????????????#???????# ???????????? | | ???????????????????????????# "?G"??# ???????????? | | ???????????????????????????# "" "" # ?? #??# | | ????????????g???""?????????# # #?######### | | ????????????????? ????????# g** # #??# | | ???????????????###;#####??? g*g* # #??# | | ??????????????? """""??# *** ?# #??# | | ???????????????? u "[["??#Y ?# #### | | ????????????????? [["### #[% | | ?????????????????""" [["# # # % | | ????????????## ???#" " " # ####### =! "%" "" | | ???????????"# #" % ""% "" | | ??????????g g % g u u % %w """ "" | | ?????????? > Y Y =![[ % % %%" | | ?????????? @ !!gp | | ????????????# #" "*=!!! ! l | | ??????????????????#" u""" !|Y= ;############ | | ?????????????????""" [[" % ###?????????# | | ???????????????? [[" # A #???????????# | | ???????????????? "[[" ;#??????????# | | ????????????????? """"" ##??????????# | | ?????????????????######### #?????????## | | ?????????????????????????# ! #?????????# | | ????????????g????????????# #?????????#T | | ?????????????????????????# BB #?????????## | | ?????????????????????????# BB #?????????## | | ?????????????????????????## ! ##????????# # | | ??????????????????????????# # % #????????# # | | ??????????????????????w???? ? * ####?????????##?# | | ??????????????????????????? ?% #???????????????# | | ??????????????????????????? ? ?????????????????## | | ?????????????????????????????????????????????????? | | ?????????????????????????????????????????????????? | | ?????????????????????????????????????????????????? | | ?????????????????????????????????????????????????? | | ?????????????????????????????????????????????????? | | ?????????????????????!???????????????????????????? | | ?????????????????????????????????????????????????? | | ?????????????????????????????????????????????????? | +----------------------------------------------------+ Best States ------------- Heat Dissipation 105 Energy Generation 32 Energy Capacity 815 Matter Stores 300 Matter Capacity 300 Sight Range 20 Terrain Scan Range 16 Terrain Scan Density 210 Jamming Range 14 Cloak Strength 2 Additional Mass Support 9 Corruption Block 15 Armor Coverage 225 Resistance: KI 20 Resistance: TH 50 Resistance: EX 20 Resistance: EM 20 Resistance: I 20 Resistance: S 20 Resistance: P 20 Core Shielding 20 Power Shielding 33 Propulsion Shielding 66 Evasion (%) 71 Targeting Accuracy 12 Target Analysis 6 Recoil Reduction 6 Matter Filtering 30 Particle Charging 25 Salvage Targeting 2 Offensive Hacking 52 Defensive Hacking 12 Authchip Count 1 Item Schematics ----------------- Hcp. Storage Unit | -10/Materials | Hacked Hardlight Generator | -8/Materials | Scanalyzed Mni. Grenade Launcher | -8/Materials | Scanalyzed Spread Laser | -8/Materials | Scanalyzed Deuterium Engine | -8/Materials | Extracted Hacking Suite | -8/Materials | Scanalyzed Cesium-ion Thruster | -7/Factory | Scanalyzed Antigrav System | -7/Factory | Hacked Neutrino Core | -7/Factory | Hacked Adv. System Shield | -7/Factory | Hacked Scatter Rocket Array | -7/Factory | Scanalyzed Hammer | -7/Factory | Extracted Arm. Huge Wheel | -7/Factory | Hacked Cld. VTOL Module | -7/Factory | Scanalyzed Imp. Medium Treads | -7/Factory | Hacked Combat Drone Bay | -6/Data Miner | Free Lgt. Regenerative Plating | -6/Data Miner | Free Cld. Nuclear Pulse Thruster | -6/Data Miner | Free Imp. Energy Well | -6/Data Miner | Free Neutron Cannon | -6/Data Miner | Free Field Propulsion Array | -6/Data Miner | Free Adv. Thermal Shield | -6/Data Miner | Free Hvy. Gauss Cannon | -6/Data Miner | Free Variable Charge Gun | -6/Data Miner | Free Imp. Fusion Compressor | -6/Data Miner | Free Adv. Focal Shield | -6/Data Miner | Free Adv. Weapon Cycler | -6/Data Miner | Free Enh. Force Lance | -6/Data Miner | Free Adv. Reaction Control System | -4/Factory | Hacked Q-thruster | -4/Factory | Hacked Lgt. Quantum Reactor | -4/Factory | Hacked Particle Reactor | -4/Factory | Hacked Adv. Heavy Siege Treads | -4/Factory | Hacked Robot Schematics ------------------ O-16 Technician | -10/Materials | Hacked M-28 Smith | -8/Materials | Hacked Y-54 Guardian | -7/Factory | Hacked E-15 Imp | -6/Data Miner | Free H-66 Slayer | -6/Data Miner | Free H-77 Assassin | -6/Data Miner | Free B-60 Warrior | -6/Data Miner | Free G-67 Veteran | -6/Data Miner | Free M-36 Artificer | -4/Factory | Hacked Fabricated ------------ Arm. Huge Wheel | x2 | -5/Factory | Authchip Biometal Leg | x2 | -5/Factory | Preloaded Alien Tech Used ----------------- None Achievements -------------- None Challenges ------------ None Game ------ Seed DiametricInertialNukerbomber Manual? 0 Play Time 03:25:38 Cumulative 591.2 hours Start 2024.08.14 @ 19:02:34 End 2024.08.14 @ 22:35:55 Sessions 1 Manual Loads 0 Difficulty Adventurer Special Mode None Game No. 118 Rogue 0 Adventurer 118 Explorer 0 Win Type - Total 7 Types 4/0/1/2/0/0/0/0/0 Lore% 70 Gallery% 80 Achievement% 71 Wizard Run 0 Options --------- Layout 2 ASCII 0 Keyboard 0 Movement Mouse Keybinds 0 Fullscreen 1 Font 24/Smallcaps Map View 50x49 Zoom Use 2% Tactical HUD 1 Map Filters NONE Filters NONE Steam 1 RUN: 3f97b369-0fa1-46ae-a3c2-ca47d42e6d98